fUSD/lending_fUSD_20260121
["ID","MTS","AMOUNT","RATE_DAILY","PERIOD"]
[402953787,1769016643346,-500.0,0.00017918,2]
[402953788,1769016643357,-500.0,0.00017918,2]
[402953789,1769016643368,-551.0,0.00017918,2]
[402953790,1769016643378,-500.0,0.00017918,2]
[402953791,1769016643388,-5257.4786671,0.00017927,2]
[402953792,1769016643398,-816.87543449,0.00017927,2]
[402953794,1769016644001,-2158.99900859,0.00017927,2]
[402953795,1769016644016,-229.77469209,0.00017928,2]
[402953796,1769016644026,-187.78006525,0.00017937,2]
[402953797,1769016644036,-574.12855637,0.00017937,2]
[402953798,1769016644046,-686.35,0.00017937,2]
[402953799,1769016644055,-168.0,0.00017944,2]
[402953800,1769016644065,-250.0,0.00017965,2]
[402953801,1769016644075,-195.0,0.00017969,2]
[402953802,1769016644084,-300.0,0.00017969,2]
[402953803,1769016644095,-600.0,0.00017969,2]
[402953804,1769016644104,-193.0,0.00017969,2]
[402953805,1769016644114,-5000.0,0.00017969,2]
[402953806,1769016644126,-2500.0,0.00017969,2]
[402953807,1769016644136,-300.0,0.00017969,2]
[402953808,1769016644146,-500.0,0.0001797,2]
[402953809,1769016644156,-1000.0,0.0001797,2]
[402953810,1769016644165,-694.631145,0.0001797,2]
[402953811,1769016644175,-1000.0,0.0001797,2]
[402953812,1769016644185,-1321.57411122,0.0001797,2]
[402953813,1769016644194,-465.0,0.00017972,2]
[402953814,1769016644204,-500.0,0.00017972,2]
[402953815,1769016644213,-642.0,0.00017972,2]
[402953816,1769016644223,-150.0,0.00017973,2]
[402953817,1769016644232,-30935.0,0.00017973,2]
[402953818,1769016644242,-15055.0,0.00017973,2]
[402953819,1769016644252,-500.0,0.00017973,2]
[402953820,1769016644263,-500.0,0.00017973,2]
[402953821,1769016644272,-500.0,0.00017973,2]
[402953822,1769016644282,-250.0,0.00017973,2]
[402953823,1769016644293,-311.25613076,0.00017973,2]
[402953824,1769016644302,-500.0,0.00017973,2]
[402953825,1769016644312,-407.28876085,0.00017973,2]
[402953826,1769016644322,-500.0,0.00017973,2]
[402953827,1769016644331,-551.0,0.00017973,2]
[402953828,1769016644340,-150.0,0.00017973,2]
[402953829,1769016644349,-3609.7612781,0.00017978,2]
[402953830,1769016644359,-2000.0,0.00017982,2]
[402953831,1769016644370,-2000.0,0.00017982,2]
[402953832,1769016644379,-2000.0,0.00017982,2]
[402953833,1769016644389,-1000.0,0.00017982,2]
[402953834,1769016644398,-1000.0,0.00017982,2]
[402953835,1769016644408,-1202.74527863,0.0001799,2]
[402953836,1769016644417,-1202.74527863,0.0001799,2]
[402953837,1769016644427,-10304.0,0.00017996,2]
[402953838,1769016644436,-151.0,0.00017997,2]
[402953839,1769016644445,-150.0,0.00017999,2]
[402953840,1769016644454,-252.48903335,0.00017999,2]
[402953841,1769016644463,-300.0,0.00017999,2]
[402953842,1769016644472,-666.0,0.00017999,2]
[402953843,1769016644481,-150.0,0.00017999,2]
[402953844,1769016644491,-1098.65614174,0.00017999,5]
[402953845,1769016644500,-1098.65614173,0.00017999,5]
[402953846,1769016644509,-174.04894204,0.00017999,2]
[402953847,1769016644518,-500.0,0.00017999,2]
[402953848,1769016644532,-295.66924572,0.00017999,2]
[402953849,1769016644542,-500.0,0.00017999,2]
[402953850,1769016644552,-203.88282731,0.00017999,2]
[402953851,1769016644561,-500.0,0.00017999,2]
[402953852,1769016644571,-500.0,0.00017999,2]
[402953853,1769016644580,-500.0,0.00017999,2]
[402953854,1769016644590,-213.37367155,0.00017999,2]
[402953855,1769016644602,-500.0,0.00017999,2]
[402953856,1769016644611,-500.0,0.00017999,2]
[402953857,1769016644622,-500.0,0.00017999,2]
[402953858,1769016644631,-500.0,0.00017999,2]
[402953859,1769016644640,-500.0,0.00017999,2]
[402953860,1769016644650,-505.42901532,0.00017999,2]
[402953861,1769016644659,-366.21904964,0.00017999,2]
[402953862,1769016644669,-4169501.15958287,0.00018,2]
[402953863,1769016645103,-7167.08885631,0.00018,2]
[402953864,1769016645182,-7942.50148664,0.00018,2]
[402953865,1769016645193,-2619.0,0.00018,2]
[402953868,1769016645960,-154.69979071,0.00016335,2]
[402953869,1769016646294,-345.30020929,0.00016335,2]
[402953871,1769016646304,-1.37625845,0.00016335,2]
[402953873,1769016646315,-290.43518635,0.00016335,2]
[402953875,1769016646325,-500.0,0.00016335,2]
[402953876,1769016646334,-500.0,0.00016335,2]
[402953877,1769016646343,-500.0,0.00016335,2]
[402953878,1769016646352,-500.0,0.00016335,2]
[402953879,1769016646362,-500.0,0.00016343,2]
[402953880,1769016646371,-500.0,0.00016343,2]
[402953881,1769016646380,-500.0,0.00016343,2]
[402953882,1769016646389,-500.0,0.00016343,2]
[402953883,1769016646399,-322.56453129,0.00018,2]
[402953884,1769016646411,-7095667.3390124,0.00018,2]
[402953885,1769016646422,-433.84914992,0.00018,2]
[402953886,1769016646434,-2525.46533097,0.00018,2]
[402953887,1769016646455,-150.0,0.00017808,2]
[402953888,1769016646464,-935.23519559,0.00018,2]
[402953889,1769016646476,-3718.69311632,0.00018,2]
[402953890,1769016646487,-4430.16970785,0.00018,2]
[402953891,1769016649016,-150.0,0.00017863,2]
[402953892,1769016649025,-886.69983856,0.00018,2]
[402953893,1769016650719,-368.65790393,0.00016243,2]
[402953894,1769016651226,-8590.9713972,0.00016243,2]
[402953895,1769016652408,-1680.99273892,0.00016243,2]
[402953896,1769016652459,-1104.89183922,0.00016243,2]
[402953897,1769016652471,-2364.97415237,0.00016243,2]
[402953898,1769016652482,-19124.24056836,0.00016243,2]
[402953899,1769016652494,-151.0,0.00016797,2]
[402953900,1769016652503,-152.17,0.00016797,2]
[402953901,1769016652512,-200.49238854,0.00017918,2]
[402953902,1769016652522,-728611.36293284,0.00018,2]
[402953903,1769016652555,-811.61498464,0.00018,2]
[402953904,1769016652697,-1201.25150158,0.00018,2]
[402953905,1769016652708,-4722.80775396,0.00018,2]
[402953906,1769016652719,-3653.34027035,0.00018,2]
[402953907,1769016652729,-796.54963418,0.00018,2]
[402953908,1769016652740,-4166.09727256,0.00018,2]
[402953909,1769016652752,-1122.94752,0.00018,2]
[402953910,1769016652763,-778.31749117,0.00018,2]
[402953911,1769016652774,-2183.075,0.00018,2]
[402953912,1769016652785,-1444.61513517,0.00018,2]
[402953913,1769016652795,-731799.92287222,0.00018,2]
[402953914,1769016652815,-10968.58516621,0.00018,2]
[402953915,1769016652826,-43900.0,0.00018,2]
[402953916,1769016669276,-195.0,0.00016343,2]
[402953917,1769016673045,-245.70075882,0.00016343,2]
[402953918,1769016674720,-200.0,0.00016335,2]
[402953919,1769016676448,-200.14401562,0.00016335,2]
[402953920,1769016677542,10000.01,0.00016134,2]
[402953921,1769016677566,10000.01,0.00016134,2]
[402953922,1769016677590,10000.01,0.00016134,2]
[402953923,1769016677614,10000.01,0.00016134,2]
[402953924,1769016677638,10000.01,0.00016134,2]
[402953925,1769016678718,-187.8127565,0.00016134,2]
[402953926,1769016683267,-352.43299148,0.00016134,2]
[402953927,1769016685408,-165.85848592,0.00016134,2]
[402953928,1769016689311,-165.17107784,0.00016134,2]
[402953929,1769016692571,-269.5220157,0.00016134,2]
[402953930,1769016694078,-158.50428481,0.00016134,2]
[402953931,1769016699320,300.0,0.000159,5]
[402953932,1769016702451,-177.7339272,0.00016133,5]
[402953933,1769016703678,-395.24998737,0.00016133,5]
[402953934,1769016709779,-319.53239174,0.00016133,5]
[402953935,1769016711828,-164.9802563,0.00016133,5]
[402953936,1769016717377,-47.99379807,0.00016133,5]
[402953937,1769016717399,-159.27633665,0.00016133,5]
[402953938,1769016718947,-273.07438019,0.00016133,5]
[402953939,1769016719969,9389.22447766,0.00016036,2]
[402953942,1769016723558,-300.0,0.00016133,5]
[402953943,1769016725647,-169.12939437,0.00016133,5]
[402953944,1769016729588,-204.01024947,0.00016133,5]
[402953945,1769016729614,-95.98975053,0.00016133,5]
[402953946,1769016732495,-297.96694655,0.00016133,5]
[402953947,1769016733797,-249.48742691,0.00016133,5]
[402953948,1769016735599,-346.77395253,0.00016133,5]
[402953949,1769016736190,310.78552234,0.000159,5]
[402953950,1769016736215,1889.21447766,0.000159,5]
[402953951,1769016737185,-108.43806522,0.00016133,5]
[402953952,1769016737213,-225.73370639,0.00016133,2]
[402953953,1769016741293,-74.26629361,0.00016133,2]
[402953954,1769016741316,-243.95846444,0.00016133,2]
[402953955,1769016743577,-195.24692824,0.00016133,2]
[402953956,1769016749322,-251.3420909,0.00016133,2]
[402953957,1769016752274,-196.5894186,0.00016133,2]
[402953958,1769016752296,-112.72775062,0.00016133,2]
[402953959,1769016753517,-187.27224938,0.00016133,2]
[402953960,1769016753537,-195.0,0.00016133,2]
[402953961,1769016753562,-102.85603324,0.00016133,2]
[402953962,1769016755466,-197.14396676,0.00016133,2]
[402953963,1769016755488,-112.70558413,0.00016133,2]
[402953964,1769016757685,-120.0196632,0.00016133,2]
[402953965,1769016757707,-117.03004273,0.00016133,5]
[402953966,1769016760416,8110.79552234,0.00016036,2]
[402953967,1769016760440,10000.01,0.00016036,2]
[402953968,1769016760463,10000.01,0.00016036,2]
[402953969,1769016760923,204.60347449,0.00016036,2]
[402953970,1769016761646,-223.04563829,0.00016133,5]
[402953971,1769016764892,-159.10899073,0.00016133,5]
[402953972,1769016767126,-176.2629968,0.00016133,5]
[402953973,1769016772310,-157.99542452,0.00016133,2]
[402953974,1769016772333,-51.97623993,0.00016133,5]
[402953975,1769016773662,-179.75030881,0.00016133,5]
[402953976,1769016777477,-191.48192445,0.00016133,5]
[402953977,1769016777504,-38.67548797,0.00016134,2]
[402953978,1769016781266,-264.87733376,0.00016134,2]
[402953979,1769016784522,-217.99090718,0.00016133,2]
[402953980,1769016786410,226.49968852,0.00016034,2]
[402953982,1769016790332,-255.19210098,0.00016133,2]
[402953983,1769016791522,-26.81699184,0.00016133,2]
[402953984,1769016791544,-166.03308072,0.00016133,2]
[402953985,1769016791603,-83.96691928,0.00016133,2]
[402953986,1769016791627,-550.0,0.00016133,2]
[402953987,1769016791652,-281.03308072,0.00016134,2]
[402953988,1769016794060,-214.76956313,0.00016134,2]
[402953989,1769016795496,-190.65285717,0.00016134,2]
[402953990,1769016796366,206.45,0.00015928,2]
[402953991,1769016797027,-151.43953332,0.00016134,2]
[402953992,1769016799433,-211.8076578,0.00016134,2]
[402953993,1769016802042,-388.99503543,0.00016133,2]
[402953994,1769016805974,-301.01445462,0.00016133,2]
[402953995,1769016808048,-230.99050995,0.00016133,2]
[402953996,1769016808072,-104.30481971,0.00016134,2]
[402953997,1769016809628,-291.56945127,0.00016134,2]
[402953998,1769016811648,-174.67580081,0.00016134,2]
[402953999,1769016814717,-302.0,0.00016134,2]
[402954000,1769016817532,-166.35469058,0.00016134,2]
[402954001,1769016821468,-244.49883138,0.00016134,2]
[402954002,1769016822659,-194.78001737,0.00016134,2]
[402954003,1769016825539,-245.95516537,0.00016134,2]
[402954004,1769016827086,-284.42714575,0.00016134,2]
[402954005,1769016829057,-167.25108689,0.00016134,2]
[402954006,1769016831081,-291.6794358,0.00016134,2]
[402954007,1769016834711,-302.0,0.00016134,2]
[402954008,1769016837625,-319.213865,0.00016134,2]
[402954009,1769016839080,-536.84903701,0.00016134,2]
[402954010,1769016842768,-168.59545555,0.00016133,2]
[402954011,1769016845483,-131.40454445,0.00016133,2]
[402954012,1769016845508,-74.64404502,0.00016134,2]
[402954013,1769016848633,1052.52324555,0.00016034,2]
[402954014,1769016849873,-166.70326818,0.00016134,2]
[402954015,1769016852038,-214.41568369,0.00016134,2]
[402954018,1769016855005,-181.20370123,0.00016134,2]
[402954019,1769016860482,-387.92974064,0.00016134,2]
[402954020,1769016863124,-239.43019062,0.00016134,2]
[402954021,1769016869894,-319.18419913,0.00016134,2]
[402954022,1769016876789,-152.58184406,0.00016134,2]
[402954023,1769016880354,-302.0,0.00016134,2]
[402954024,1769016883300,-222.5250911,0.00016134,2]
[402954025,1769016884570,-309.95623734,0.00016134,2]
[402954026,1769016886176,-211.18046421,0.00016134,2]
[402954027,1769016889143,-264.38189314,0.00016134,2]
[402954028,1769016892223,-208.42876866,0.00016134,2]
[402954029,1769016896036,-220.14059772,0.00016134,2]
[402954030,1769016901103,-431.03112598,0.00016134,2]
[402954031,1769016903395,-300.0,0.00016133,2]
[402954032,1769016903416,-198.80451478,0.00016133,2]
[402954033,1769016904713,1385.99,0.00015753,2]
[402954034,1769016910862,-101.19548522,0.00016133,2]
[402954035,1769016910886,-211.005736,0.00016133,2]
[402954036,1769016918433,-200.95907073,0.00016133,2]
[402954037,1769016921296,-189.26780316,0.00016133,2]
[402954038,1769016926215,-400.22428166,0.00016133,2]
[402954039,1769016926759,150.99979234,0.00016034,2]
[402954040,1769016928446,-198.54310845,0.00016133,2]
[402954041,1769016928474,-287.98105866,0.00016134,2]
[402954042,1769016932481,-178.80568517,0.00016134,2]
[402954043,1769016935067,-290.59655894,0.00016133,2]
[402954044,1769016937424,-209.40344106,0.00016133,2]
[402954045,1769016937447,-92.59655894,0.00016133,2]
[402954046,1769016939193,-407.40344106,0.00016133,2]
[402954047,1769016939227,-92.59655894,0.00016133,2]
[402954048,1769016940875,-159.66199517,0.00016133,2]
[402954049,1769016943393,-247.74144589,0.00016133,2]
[402954050,1769016943420,-81.32893128,0.00016133,2]
[402954051,1769016944582,-261.08377461,0.00016133,2]
[402954052,1769016945975,-157.58729411,0.00016133,2]
[402954053,1769016945999,-115.29355141,0.00016133,2]
[402954054,1769016952546,-384.70644859,0.00016133,2]
[402954055,1769016952568,-46.24903175,0.00016133,2]
[402954056,1769016954129,-229.75608683,0.00016133,2]
[402954057,1769016957430,-229.56785902,0.00016133,2]
[402954058,1769016960624,-157.79742493,0.00016133,2]
[402954059,1769016965445,-245.16221657,0.00016133,2]
[402954060,1769016967311,-254.83778343,0.00016133,2]
[402954061,1769016967340,-45.16221657,0.00016133,2]
[402954062,1769016969709,-67.47249948,0.00016133,2]
[402954063,1769016969731,-88.78750052,0.00016133,2]
[402954064,1769016972520,-147.78362005,0.00016133,2]
[402954065,1769016972542,-237.38624424,0.00016133,2]
[402954066,1769016976090,-107.40844786,0.00016133,2]
[402954067,1769016976114,-66.07345078,0.00016133,5]
[402954068,1769016977518,-113.02677906,0.00016133,5]
[402954069,1769016977541,-222.59996528,0.00016133,2]
[402954070,1769016980934,-189.22159731,0.00016133,2]
[402954071,1769016982473,-138.17843741,0.00016133,2]
[402954072,1769016982494,-121.28110882,0.00016133,2]
[402954073,1769016984523,-151.63403555,0.00016133,2]
[402954074,1769016985563,-27.08485563,0.00016133,2]
[402954075,1769016985590,-144.55887599,0.00016134,2]
[402954076,1769016989184,-200.0,0.00016134,2]
[402954077,1769016991553,-500.0,0.00016134,2]
[402954078,1769016995111,-220.07851726,0.00016134,2]
[402954079,1769016996327,-181.96285593,0.00016134,2]
[402954080,1769016997697,-214.19105989,0.00016133,2]
[402954081,1769016997722,-21.8980792,0.00016134,2]
[402954082,1769016999188,-205.73271156,0.00016133,2]
[402954083,1769017001318,-109.74357362,0.00016133,2]
[402954084,1769017001343,-130.25642638,0.00016134,2]
[402954085,1769017003548,-160.57017195,0.00016134,2]
[402954086,1769017005547,-248.61363329,0.00016134,2]
[402954087,1769017007842,-278.91626884,0.00016134,2]
[402954088,1769017009375,-201.64389988,0.00016134,2]
[402954089,1769017012216,-204.37705697,0.00016134,2]
[402954090,1769017017164,-246.29664146,0.00016134,2]
[402954091,1769017019057,-183000.0,0.00016134,2]
[402954092,1769017019134,-269.85609689,0.00016134,2]
[402954093,1769017022992,-300.0,0.00016133,2]
[402954094,1769017023025,-110.86237777,0.00016134,2]
[402954095,1769017024763,-187.80666021,0.00016134,2]
[402954096,1769017026910,-326.03769801,0.00016134,2]
[402954097,1769017029989,-199.97653354,0.00016134,2]
[402954098,1769017031053,-259.65386687,0.00016124,2]
[402954099,1769017033021,-240.34613313,0.00016124,2]
[402954100,1769017033043,-123.06047972,0.00016124,2]
[402954101,1769017035276,-299.35701369,0.00016124,2]
[402954102,1769017036500,-77.58250659,0.00016124,2]
[402954103,1769017036521,-244.73424043,0.00016124,2]
[402954104,1769017038030,-207.16504362,0.00016124,2]
[402954105,1769017039678,-48.10071595,0.00016124,2]
[402954106,1769017039701,-160.64368691,0.00016124,2]
[402954107,1769017042330,-173.75642742,0.00016124,2]
[402954108,1769017044918,3240.0,0.00015602,2]
[402954109,1769017059357,-165.59988567,0.00016124,2]
[402954110,1769017059381,-500.0,0.00016124,2]
[402954111,1769017059401,-500.0,0.00016124,2]
[402954112,1769017059820,-500.0,0.00016124,2]
[402954113,1769017059843,-500.0,0.00016124,2]
[402954114,1769017059863,-500.0,0.00016124,2]
[402954115,1769017059885,-500.0,0.00016124,2]
[402954116,1769017059907,-500.0,0.00016124,2]
[402954117,1769017059928,-500.0,0.00016124,2]
[402954118,1769017059947,-500.0,0.00016124,2]
[402954119,1769017059969,-500.0,0.00016124,2]
[402954120,1769017059993,-500.0,0.00016124,2]
[402954121,1769017060014,-200.0,0.00016124,2]
[402954122,1769017060034,-200.0,0.00016124,2]
[402954123,1769017060054,-500.0,0.00016124,2]
[402954124,1769017060077,-500.0,0.00016124,2]
[402954125,1769017060098,-500.0,0.00016124,2]
[402954126,1769017060120,-500.0,0.00016124,2]
[402954127,1769017060139,-500.0,0.00016124,2]
[402954128,1769017060160,-500.0,0.00016124,2]
[402954129,1769017060180,-500.0,0.00016124,2]
[402954130,1769017060205,-204.89218859,0.00016124,2]
[402954131,1769017060224,-151.0,0.00016124,2]
[402954132,1769017060245,-151.0,0.00016124,2]
[402954133,1769017060266,-151.0,0.00016124,2]
[402954134,1769017060288,-151.0,0.00016124,2]
[402954135,1769017060309,-151.0,0.00016124,2]
[402954136,1769017060329,-151.0,0.00016124,2]
[402954137,1769017060348,-151.0,0.00016124,2]
[402954138,1769017060368,-151.0,0.00016124,2]
[402954139,1769017060389,-151.0,0.00016124,2]
[402954140,1769017060411,-151.0,0.00016124,2]
[402954141,1769017060432,-151.0,0.00016124,2]
[402954142,1769017060453,-151.0,0.00016124,2]
[402954143,1769017060474,-151.0,0.00016124,2]
[402954144,1769017060493,-151.0,0.00016124,2]
[402954145,1769017060514,-151.0,0.00016124,2]
[402954146,1769017060533,-151.0,0.00016124,2]
[402954147,1769017060553,-151.0,0.00016124,2]
[402954148,1769017060573,-151.0,0.00016124,2]
[402954149,1769017060596,-151.0,0.00016124,2]
[402954150,1769017060615,-151.0,0.00016124,2]
[402954151,1769017060636,-151.0,0.00016124,2]
[402954152,1769017060662,-735058.50792574,0.00016134,2]
[402954153,1769017127668,-300.0,0.00016123,2]
[402954154,1769017127688,-620.0,0.00016123,2]
[402954155,1769017127710,-250.0,0.00016123,2]
[402954156,1769017127731,-195.0,0.00016124,2]
[402954157,1769017127751,-600.0,0.00016124,2]
[402954158,1769017127772,-151.0,0.00016124,2]
[402954159,1769017127793,-151.0,0.00016124,2]
[402954160,1769017127812,-151.0,0.00016124,2]
[402954161,1769017127832,-151.0,0.00016124,2]
[402954162,1769017127851,-151.0,0.00016124,2]
[402954163,1769017127870,-151.0,0.00016124,2]
[402954164,1769017127889,-151.0,0.00016124,2]
[402954165,1769017127909,-151.0,0.00016124,2]
[402954166,1769017127930,-151.0,0.00016124,2]
[402954167,1769017127951,-200.0,0.00016124,2]
[402954168,1769017127972,-151.0,0.00016124,2]
[402954169,1769017127992,-151.0,0.00016124,2]
[402954170,1769017128013,-151.0,0.00016124,2]
[402954171,1769017128033,-500.0,0.00016124,2]
[402954172,1769017128053,-670.11059139,0.00016124,2]
[402954173,1769017128072,-328.68188319,0.00016131,2]
[402954174,1769017128409,-17457.09021308,0.00016134,2]
[402954175,1769017128430,-157.99542452,0.00016134,2]
[402954176,1769017128450,-157.99542452,0.00016134,2]
[402954177,1769017128471,-1000.0,0.00016136,2]
[402954178,1769017128491,-5142.7566,0.00016136,2]
[402954179,1769017128510,-236.9366,0.00016136,2]
[402954180,1769017128530,-33234.7286,0.00016136,2]
[402954181,1769017128550,-7569.8795,0.00016136,2]
[402954182,1769017128570,-2500.0,0.00016136,2]
[402954183,1769017128590,-150.99979233,0.00016143,2]
[402954184,1769017128609,-500.0,0.00016235,2]
[402954185,1769017128629,-500.0,0.00016235,2]
[402954186,1769017128650,-500.0,0.00016235,2]
[402954187,1769017128675,-500.0,0.00016235,2]
[402954188,1769017128696,-150.00457962,0.00016292,2]
[402954189,1769017128715,-270.89,0.00016334,2]
[402954190,1769017128736,-59.29924118,0.00016343,2]
[402954191,1769017128757,-388.8783882,0.00016343,2]
[402954192,1769017128777,-500.0,0.00016343,2]
[402954193,1769017128796,-500.0,0.00016343,2]
[402954194,1769017128815,-500.0,0.00016343,2]
[402954195,1769017128834,-500.0,0.00016343,2]
[402954196,1769017128855,-500.0,0.00016343,2]
[402954197,1769017128874,-500.0,0.00016343,2]
[402954198,1769017128893,-226.94622895,0.00016343,2]
[402954199,1769017128912,-500.0,0.00016343,2]
[402954200,1769017128932,-500.0,0.00016343,2]
[402954201,1769017128955,-500.0,0.00016343,2]
[402954202,1769017128975,-500.0,0.00016343,2]
[402954203,1769017128994,-500.0,0.00016343,2]
[402954204,1769017129016,-514.94793868,0.00016343,2]
[402954205,1769017129037,-500.0,0.00016343,2]
[402954206,1769017129058,-500.0,0.00016343,2]
[402954207,1769017129079,-500.0,0.00016343,2]
[402954208,1769017129098,-500.0,0.00016343,2]
[402954209,1769017129118,-971.73,0.00016343,2]
[402954210,1769017129139,-500.0,0.00016343,2]
[402954211,1769017129159,-500.0,0.00016343,2]
[402954212,1769017129178,-500.0,0.00016343,2]
[402954213,1769017129197,-500.0,0.00016343,2]
[402954214,1769017129218,-500.0,0.00016343,2]
[402954215,1769017129238,-500.0,0.00016343,2]
[402954216,1769017129258,-589.03869133,0.00016343,2]
[402954217,1769017129279,-500.0,0.00016343,2]
[402954218,1769017129298,-195.85504211,0.00016343,2]
[402954219,1769017129319,-500.0,0.00016343,2]
[402954220,1769017129339,-500.0,0.00016343,2]
[402954221,1769017129359,-500.0,0.00016343,2]
[402954222,1769017129380,-500.0,0.00016343,2]
[402954223,1769017129400,-500.0,0.00016343,2]
[402954224,1769017129420,-500.0,0.00016343,2]
[402954225,1769017129440,-500.0,0.00016343,2]
[402954226,1769017129459,-508.23761402,0.00016343,2]
[402954227,1769017129479,-398.16215466,0.00016343,2]
[402954228,1769017129499,-328.76131478,0.00016415,2]
[402954229,1769017129519,-500.0,0.00016428,2]
[402954230,1769017129540,-200.0,0.00016429,2]
[402954231,1769017129561,-29999.99,0.00016429,2]
[402954232,1769017129580,-2538.16,0.00016429,2]
[402954233,1769017129599,-1723.06,0.00016429,2]
[402954234,1769017129620,-150.99,0.00016429,2]
[402954235,1769017129639,-9999.99,0.00016429,2]
[402954236,1769017129660,-999.99,0.00016429,2]
[402954237,1769017129680,-151.0,0.00016438,2]
[402954238,1769017129701,-9999.99,0.0001645,2]
[402954239,1769017129720,-1180.58,0.0001645,2]
[402954240,1769017129741,-4672.25,0.0001645,2]
[402954241,1769017129761,-293.55,0.0001645,2]
[402954242,1769017129781,-84503.49,0.0001645,2]
[402954243,1769017129804,-1536.72,0.0001645,2]
[402954244,1769017129824,-150.99,0.0001645,2]
[402954245,1769017129844,-1550.71,0.0001645,2]
[402954246,1769017129864,-299.99,0.0001645,4]
[402954247,1769017129884,-9999.99,0.0001645,2]
[402954248,1769017129903,-3472.87,0.0001645,2]
[402954249,1769017129922,-499.99,0.0001645,2]
[402954250,1769017129943,-1143.64,0.0001645,2]
[402954251,1769017129963,-5243.59,0.0001645,2]
[402954252,1769017129983,-7109.73,0.0001645,2]
[402954253,1769017130003,-9999.99,0.0001645,2]
[402954254,1769017130027,-9999.99,0.0001645,2]
[402954255,1769017130048,-297.9,0.0001645,2]
[402954256,1769017130068,-348.38,0.0001645,2]
[402954257,1769017130089,-151.0,0.00016567,2]
[402954258,1769017130109,-151.0,0.00016567,2]
[402954259,1769017130129,-151.0,0.0001657,2]
[402954260,1769017130150,-151.0,0.00016574,2]
[402954261,1769017130171,-151.0,0.00016589,2]
[402954262,1769017130198,-971.73,0.00016617,2]
[402954263,1769017130225,-200.0,0.00016672,2]
[402954264,1769017130248,-200.0,0.00016672,2]
[402954265,1769017130270,-500.0,0.00016672,2]
[402954266,1769017130296,-905.46445395,0.00016691,2]
[402954267,1769017130317,-800.0,0.000167,2]
[402954268,1769017130339,-200.0,0.00016723,2]
[402954269,1769017130366,-500.0,0.0001684,2]
[402954270,1769017130388,-500.0,0.0001684,2]
[402954271,1769017130410,-242.0,0.0001685,2]
[402954272,1769017130430,-316.0,0.00016883,2]
[402954273,1769017130458,-971.73,0.00016891,2]
[402954274,1769017130480,-575.71488184,0.00016906,2]
[402954275,1769017130504,-150.0,0.00016906,2]
[402954276,1769017130530,-256.0,0.00016917,2]
[402954277,1769017130551,-322.6107,0.00017086,2]
[402954278,1769017130572,-174.61919141,0.00017086,2]
[402954279,1769017130593,-359.76179104,0.00017086,2]
[402954280,1769017130615,-151.0,0.00017086,2]
[402954281,1769017130637,-8882.6885148,0.00017086,2]
[402954282,1769017130662,-2000.0,0.00017086,2]
[402954283,1769017130683,-151.0,0.00017086,2]
[402954284,1769017130704,-151.0,0.00017086,2]
[402954285,1769017130728,-2000.0,0.00017086,2]
[402954286,1769017130748,-194.72792766,0.00017086,2]
[402954287,1769017130770,-2000.0,0.00017086,2]
[402954288,1769017130792,-533.88981491,0.00017086,2]
[402954289,1769017130813,-200.51540943,0.00017086,2]
[402954290,1769017130834,-2000.0,0.00017086,2]
[402954291,1769017130856,-2000.0,0.00017086,2]
[402954292,1769017130878,-250.0,0.00017086,2]
[402954293,1769017130900,-2000.0,0.00017086,2]
[402954294,1769017130922,-250.0,0.00017086,2]
[402954295,1769017130943,-2000.0,0.00017086,2]
[402954296,1769017130962,-250.0,0.00017086,2]
[402954297,1769017130984,-2000.0,0.00017086,2]